[Event "Live Chess"]
[Site "Chess.com"]
[Date "2024.06.02"]
[Round "-"]
[White "Dhaydon19"]
[Black "juniortay"]
[Result "1/2-1/2"]
[WhiteElo "2673"]
[BlackElo "2447"]
[TimeControl "300"]
[EndTime "21:01:47 PDT"]
[Termination "Game drawn by repetition"]

1. Nf3 {[%clk 0:04:44.6]} 1... d5 {[%clk 0:04:57.7]} 2. e3 {[%clk 0:04:43.6]}
2... c5 {[%clk 0:04:56.4]} 3. b3 {[%clk 0:04:43.3]} 3... a6 {[%clk 0:04:55.8]}
4. Bb2 {[%clk 0:04:43]} 4... Nc6 {[%clk 0:04:55.3]} 5. d4 {[%clk 0:04:41.4]}
5... Nf6 {[%clk 0:04:54.3]} 6. dxc5 {[%clk 0:04:40.2]} 6... e6 {[%clk
0:04:53.5]} 7. Nbd2 {[%clk 0:04:38.5]} 7... Bxc5 {[%clk 0:04:52.5]} 8. c4 {[%clk
0:04:37.6]} 8... O-O {[%clk 0:04:51.8]} 9. cxd5 {[%clk 0:04:36.4]} 9... exd5
{[%clk 0:04:50.3]} 10. Rc1 {[%clk 0:04:35.8]} 10... Ba7 {[%clk 0:04:49.3]} 11.
Be2 {[%clk 0:04:34.8]} 11... Qe7 {[%clk 0:04:48.6]} 12. O-O {[%clk 0:04:32.7]}
12... Rd8 {[%clk 0:04:48.1]} 13. Qc2 {[%clk 0:04:30]} 13... Bg4 {[%clk
0:04:45.8]} 14. Rfe1 {[%clk 0:04:27.6]} 14... Rac8 {[%clk 0:04:44.3]} 15. Qb1
{[%clk 0:04:25.9]} 15... Ne4 {[%clk 0:04:42.4]} 16. Nxe4 {[%clk 0:04:19]} 16...
dxe4 {[%clk 0:04:40.5]} 17. Nd4 {[%clk 0:04:18.6]} 17... Bxe2 {[%clk 0:04:34.1]}
18. Nxc6 {[%clk 0:04:10]} 18... Rxc6 {[%clk 0:04:27.3]} 19. Rxe2 {[%clk
0:04:06.3]} 19... Rcd6 {[%clk 0:04:22.5]} 20. Ba3 {[%clk 0:04:01.6]} 20... Bb8
{[%clk 0:04:14.1]} 21. Bxd6 {[%clk 0:03:58.8]} 21... Qxd6 {[%clk 0:04:12.2]} 22.
g3 {[%clk 0:03:58.3]} 22... f5 {[%clk 0:03:55.3]} 23. Ree1 {[%clk 0:03:57.1]}
23... Qg6 {[%clk 0:03:46.4]} 24. Red1 {[%clk 0:03:53.8]} 24... Rf8 {[%clk
0:03:41]} 25. Qc2 {[%clk 0:03:52.9]} 25... h5 {[%clk 0:03:35.1]} 26. Qc4+ {[%clk
0:03:47.6]} 26... Kh7 {[%clk 0:03:33.9]} 27. Qc5 {[%clk 0:03:42.8]} 27... Rf7
{[%clk 0:03:17.9]} 28. Qc8 {[%clk 0:03:30.6]} 28... Be5 {[%clk 0:03:12.5]} 29.
Rd8 {[%clk 0:03:27.6]} 29... Qg4 {[%clk 0:03:09.5]} 30. Rh8+ {[%clk 0:03:17.7]}
30... Kg6 {[%clk 0:03:08.4]} 31. Qe6+ {[%clk 0:03:16.2]} 31... Bf6 {[%clk
0:02:57.4]} 32. Qe8 {[%clk 0:03:13.7]} 32... Be7 {[%clk 0:02:30.3]} 33. Qb8
{[%clk 0:02:44.8]} 33... Bg5 {[%clk 0:02:12]} 34. Rf8 {[%clk 0:02:27.3]} 34...
Rxf8 {[%clk 0:02:07.5]} 35. Qxf8 {[%clk 0:02:26.3]} 35... h4 {[%clk 0:02:05]}
36. Qe8+ {[%clk 0:02:22.5]} 36... Kh7 {[%clk 0:02:01.3]} 37. Qe6 {[%clk
0:02:09.5]} 37... hxg3 {[%clk 0:01:54.4]} 38. hxg3 {[%clk 0:02:07.2]} 38... Bxe3
{[%clk 0:01:52]} 39. fxe3 {[%clk 0:01:40.8]} 39... Qxg3+ {[%clk 0:01:50.1]} 40.
Kf1 {[%clk 0:01:40.3]} 40... Qf3+ {[%clk 0:01:43.9]} 41. Ke1 {[%clk 0:01:39.2]}
41... Qxe3+ {[%clk 0:01:43.3]} 42. Kd1 {[%clk 0:01:37.3]} 42... Qd3+ {[%clk
0:01:38.8]} 43. Ke1 {[%clk 0:01:36.2]} 43... Qe3+ {[%clk 0:01:31.7]} 44. Kd1
{[%clk 0:01:34.6]} 44... Qd3+ {[%clk 0:01:25.5]} 45. Ke1 {[%clk 0:01:33]} 45...
Qe3+ {[%clk 0:01:24.7]} 1/2-1/2

[Event "Live Chess"]
[Site "Chess.com"]
[Date "2024.06.02"]
[Round "-"]
[White "Mangoalo"]
[Black "NeilDruggan73"]
[Result "0-1"]
[WhiteElo "1066"]
[BlackElo "1766"]
[TimeControl "300"]
[EndTime "21:01:48 PDT"]
[Termination "NeilDruggan73 won by checkmate"]

1. e4 {[%clk 0:04:52.2]} 1... d6 {[%clk 0:04:58.5]} 2. d4 {[%clk 0:04:50.5]}
2... Nf6 {[%clk 0:04:57.1]} 3. Nc3 {[%clk 0:04:48.7]} 3... g6 {[%clk 0:04:56]}
4. Bc4 {[%clk 0:04:46.2]} 4... Nxe4 {[%clk 0:04:52.7]} 5. Nxe4 {[%clk
0:04:42.3]} 5... d5 {[%clk 0:04:51.6]} 6. Bxd5 {[%clk 0:04:36.6]} 6... Qxd5
{[%clk 0:04:50.1]} 7. Qe2 {[%clk 0:04:35.3]} 7... Bg7 {[%clk 0:04:47.9]} 8. c3
{[%clk 0:04:33.3]} 8... Bf5 {[%clk 0:04:45.6]} 9. f3 {[%clk 0:04:30.9]} 9... O-O
{[%clk 0:04:42.9]} 10. Bf4 {[%clk 0:04:25.3]} 10... Nc6 {[%clk 0:04:39.7]} 11.
O-O-O {[%clk 0:04:21.8]} 11... Rac8 {[%clk 0:04:37]} 12. c4 {[%clk 0:04:20.8]}
12... Nxd4 {[%clk 0:04:31.5]} 13. cxd5 {[%clk 0:04:17.9]} 13... Nxe2+ {[%clk
0:04:29.9]} 14. Nxe2 {[%clk 0:04:17.8]} 14... Bd7 {[%clk 0:04:21.6]} 15. Kb1
{[%clk 0:04:07.7]} 15... h6 {[%clk 0:04:19.6]} 16. g4 {[%clk 0:04:04.9]} 16...
g5 {[%clk 0:04:16.8]} 17. Bg3 {[%clk 0:04:00.3]} 17... f5 {[%clk 0:04:13.2]} 18.
gxf5 {[%clk 0:03:57.8]} 18... Bxf5 {[%clk 0:04:12.8]} 19. Nc3 {[%clk 0:03:54.5]}
19... Rfe8 {[%clk 0:04:10.7]} 20. Ka1 {[%clk 0:03:49.5]} 20... e6 {[%clk
0:04:08.4]} 21. dxe6 {[%clk 0:03:46]} 21... Rxe6 {[%clk 0:04:06.9]} 22. Nc5
{[%clk 0:03:41.6]} 22... Rc6 {[%clk 0:04:03.7]} 23. Nxb7 {[%clk 0:03:36.7]}
23... Rb8 {[%clk 0:04:02.9]} 24. Na5 {[%clk 0:03:34.2]} 24... Rcb6 {[%clk
0:04:01.2]} 25. Nc4 {[%clk 0:03:32.2]} 25... Rb4 {[%clk 0:03:59.1]} 26. Bxc7
{[%clk 0:03:13.3]} 26... R8b7 {[%clk 0:03:57.4]} 27. Rd8+ {[%clk 0:03:06]} 27...
Kh7 {[%clk 0:03:54.8]} 28. Nd6 {[%clk 0:02:16.6]} 28... Rxb2 {[%clk 0:03:34.2]}
29. Nxb7 {[%clk 0:02:11.9]} 29... Bxc3 {[%clk 0:03:33]} 30. Be5 {[%clk
0:01:38.4]} 30... Rb1# {[%clk 0:03:27.4]} 0-1

[Event "Live Chess"]
[Site "Chess.com"]
[Date "2024.06.02"]
[Round "-"]
[White "Mangoalo"]
[Black "Dhaydon19"]
[Result "0-1"]
[WhiteElo "1066"]
[BlackElo "2673"]
[TimeControl "300"]
[EndTime "21:03:28 PDT"]
[Termination "Dhaydon19 won by checkmate"]

1. e4 {[%clk 0:04:57.1]} 1... e6 {[%clk 0:04:59.2]} 2. d4 {[%clk 0:04:55.2]}
2... d5 {[%clk 0:04:58.8]} 3. exd5 {[%clk 0:04:55.1]} 3... exd5 {[%clk
0:04:57.8]} 4. Nc3 {[%clk 0:04:54.8]} 4... Nf6 {[%clk 0:04:57.5]} 5. Bg5 {[%clk
0:04:53.7]} 5... Be7 {[%clk 0:04:57]} 6. Nf3 {[%clk 0:04:51.6]} 6... O-O {[%clk
0:04:56.6]} 7. Bb5 {[%clk 0:04:50.5]} 7... c6 {[%clk 0:04:55.1]} 8. Ba4 {[%clk
0:04:49.5]} 8... Bg4 {[%clk 0:04:54.5]} 9. O-O {[%clk 0:04:47]} 9... Nbd7 {[%clk
0:04:53.8]} 10. h3 {[%clk 0:04:45.5]} 10... Bh5 {[%clk 0:04:52.5]} 11. g4 {[%clk
0:04:39.9]} 11... Bg6 {[%clk 0:04:51.1]} 12. Ne5 {[%clk 0:04:38.3]} 12... Nxe5
{[%clk 0:04:50]} 13. dxe5 {[%clk 0:04:38.2]} 13... Nd7 {[%clk 0:04:49.6]} 14.
Bxe7 {[%clk 0:04:36.8]} 14... Qxe7 {[%clk 0:04:49.2]} 15. Re1 {[%clk 0:04:35.1]}
15... Nxe5 {[%clk 0:04:44.8]} 16. Nxd5 {[%clk 0:04:30.6]} 16... cxd5 {[%clk
0:04:31.8]} 17. f4 {[%clk 0:04:23.8]} 17... Qc5+ {[%clk 0:04:28.1]} 18. Kh2
{[%clk 0:04:15.4]} 18... Be4 {[%clk 0:04:24.1]} 19. fxe5 {[%clk 0:04:07.5]}
19... Qf2# {[%clk 0:04:20.5]} 0-1

[Event "Live Chess"]
[Site "Chess.com"]
[Date "2024.06.02"]
[Round "-"]
[White "MagnersCarlsberg2870"]
[Black "Duke_of_Bebington"]
[Result "1-0"]
[WhiteElo "1827"]
[BlackElo "1657"]
[TimeControl "300"]
[EndTime "21:04:26 PDT"]
[Termination "MagnersCarlsberg2870 won by checkmate"]

1. d4 {[%clk 0:04:56.3]} 1... d5 {[%clk 0:04:59.1]} 2. e3 {[%clk 0:04:54.4]}
2... Nf6 {[%clk 0:04:56.3]} 3. Bd3 {[%clk 0:04:53.3]} 3... Bg4 {[%clk
0:04:41.8]} 4. f3 {[%clk 0:04:48.9]} 4... Bh5 {[%clk 0:04:41]} 5. Ne2 {[%clk
0:04:47.7]} 5... Bg6 {[%clk 0:04:40.2]} 6. Nf4 {[%clk 0:04:46.5]} 6... Bxd3
{[%clk 0:04:37.9]} 7. Nxd3 {[%clk 0:04:45.5]} 7... e6 {[%clk 0:04:34.7]} 8. Nd2
{[%clk 0:04:42.3]} 8... Nbd7 {[%clk 0:04:33.8]} 9. f4 {[%clk 0:04:39.7]} 9... c5
{[%clk 0:04:31.9]} 10. c3 {[%clk 0:04:38.5]} 10... Qb6 {[%clk 0:04:28.3]} 11.
Nf3 {[%clk 0:04:36.7]} 11... Bd6 {[%clk 0:04:22.1]} 12. Nfe5 {[%clk 0:04:35.4]}
12... O-O {[%clk 0:04:15.5]} 13. O-O {[%clk 0:04:34.1]} 13... Rac8 {[%clk
0:04:12.3]} 14. Rf3 {[%clk 0:04:32.2]} 14... Ne4 {[%clk 0:04:08.5]} 15. Rh3
{[%clk 0:04:29.2]} 15... g6 {[%clk 0:03:57.7]} 16. Nxd7 {[%clk 0:04:27.6]} 16...
Qd8 {[%clk 0:03:53.2]} 17. N7e5 {[%clk 0:04:16.1]} 17... cxd4 {[%clk 0:03:45.3]}
18. exd4 {[%clk 0:04:14.5]} 18... a6 {[%clk 0:03:36.5]} 19. Ng4 {[%clk
0:04:09.2]} 19... Kg7 {[%clk 0:03:31.1]} 20. Qf3 {[%clk 0:04:00.4]} 20... h5
{[%clk 0:03:23.2]} 21. Nge5 {[%clk 0:03:55.3]} 21... f6 {[%clk 0:03:21.3]} 22.
Nxg6 {[%clk 0:03:50.5]} 22... Kxg6 {[%clk 0:03:19.6]} 23. Qxh5+ {[%clk
0:03:49.8]} 23... Kg7 {[%clk 0:03:18]} 24. Qh7# {[%clk 0:03:47.7]} 1-0

[Event "Live Chess"]
[Site "Chess.com"]
[Date "2024.06.02"]
[Round "-"]
[White "Delacorta"]
[Black "Mikhail_Golubev"]
[Result "0-1"]
[WhiteElo "1518"]
[BlackElo "2520"]
[TimeControl "300"]
[EndTime "21:04:41 PDT"]
[Termination "Mikhail_Golubev won by resignation"]

1. d4 {[%clk 0:04:57.3]} 1... g6 {[%clk 0:04:55.1]} 2. Nf3 {[%clk 0:04:54.2]}
2... Bg7 {[%clk 0:04:54.5]} 3. c4 {[%clk 0:04:49.5]} 3... d6 {[%clk 0:04:53.4]}
4. Nc3 {[%clk 0:04:48.3]} 4... Bg4 {[%clk 0:04:52]} 5. h3 {[%clk 0:04:45.8]}
5... Bxf3 {[%clk 0:04:50.7]} 6. gxf3 {[%clk 0:04:44.6]} 6... Nd7 {[%clk
0:04:29.9]} 7. e3 {[%clk 0:04:40.6]} 7... c5 {[%clk 0:04:28.5]} 8. d5 {[%clk
0:04:33.5]} 8... Ngf6 {[%clk 0:04:21.2]} 9. Rb1 {[%clk 0:04:11.4]} 9... O-O
{[%clk 0:04:19.7]} 10. Qc2 {[%clk 0:04:00.7]} 10... e6 {[%clk 0:04:09.4]} 11. e4
{[%clk 0:03:57]} 11... exd5 {[%clk 0:04:05.7]} 12. cxd5 {[%clk 0:03:40.1]} 12...
Nh5 {[%clk 0:04:04.4]} 13. Bd2 {[%clk 0:03:22.6]} 13... Qh4 {[%clk 0:03:39.9]}
14. Be3 {[%clk 0:03:18.2]} 14... Bd4 {[%clk 0:03:14.2]} 15. Qd2 {[%clk
0:02:56.3]} 15... Ne5 {[%clk 0:02:54.3]} 16. Bg2 {[%clk 0:02:38.7]} 16... Bxe3
{[%clk 0:02:46.9]} 17. Qxe3 {[%clk 0:02:36.9]} 17... Nf4 {[%clk 0:02:44.3]} 18.
Rg1 {[%clk 0:02:25]} 18... Nc4 {[%clk 0:02:25.5]} 19. Qc1 {[%clk 0:02:08.4]}
19... Nd3+ {[%clk 0:02:23.8]} 0-1

[Event "Live Chess"]
[Site "Chess.com"]
[Date "2024.06.02"]
[Round "-"]
[White "juniortay"]
[Black "NeilDruggan73"]
[Result "1-0"]
[WhiteElo "2447"]
[BlackElo "1766"]
[TimeControl "300"]
[EndTime "21:04:44 PDT"]
[Termination "juniortay won by resignation"]

1. e4 {[%clk 0:04:57.4]} 1... d6 {[%clk 0:04:58.8]} 2. Nf3 {[%clk 0:04:56.9]}
2... Nf6 {[%clk 0:04:58.1]} 3. Nc3 {[%clk 0:04:56.8]} 3... g6 {[%clk 0:04:56.7]}
4. d4 {[%clk 0:04:56.4]} 4... Bg7 {[%clk 0:04:55.7]} 5. h3 {[%clk 0:04:56.3]}
5... b6 {[%clk 0:04:48.6]} 6. Be3 {[%clk 0:04:53.2]} 6... c5 {[%clk 0:04:46.4]}
7. d5 {[%clk 0:04:50.9]} 7... Nbd7 {[%clk 0:04:41.5]} 8. Be2 {[%clk 0:04:48.4]}
8... Ne5 {[%clk 0:04:40.4]} 9. Nd2 {[%clk 0:04:46.8]} 9... h6 {[%clk 0:04:35.2]}
10. O-O {[%clk 0:04:45.3]} 10... Bd7 {[%clk 0:04:33.2]} 11. a4 {[%clk
0:04:43.9]} 11... Qc8 {[%clk 0:04:32.5]} 12. f4 {[%clk 0:04:41.2]} 12... Bxh3
{[%clk 0:04:22.3]} 13. fxe5 {[%clk 0:04:40.5]} 13... Bxg2 {[%clk 0:04:20.7]} 14.
Kxg2 {[%clk 0:04:39.2]} 14... dxe5 {[%clk 0:04:15.4]} 15. Nc4 {[%clk 0:04:38.4]}
15... h5 {[%clk 0:04:02.6]} 16. d6 {[%clk 0:04:36.7]} 16... Ng4 {[%clk
0:03:59.6]} 17. Bxg4 {[%clk 0:04:32.1]} 17... Qxg4+ {[%clk 0:03:55.4]} 18. Qxg4
{[%clk 0:04:30.4]} 18... hxg4 {[%clk 0:03:54.6]} 19. Rh1 {[%clk 0:04:26.8]}
19... Rxh1 {[%clk 0:03:52.4]} 20. Rxh1 {[%clk 0:04:24.9]} 20... e6 {[%clk
0:03:49.2]} 21. Rh7 {[%clk 0:03:56.9]} 21... Kf8 {[%clk 0:03:47]} 22. Bh6 {[%clk
0:03:55.3]} 22... Bxh6 {[%clk 0:03:44.8]} 23. Rh8+ {[%clk 0:03:54.6]} 23... Kg7
{[%clk 0:03:42.6]} 24. Rxa8 {[%clk 0:03:54.5]} 24... Bc1 {[%clk 0:03:41.6]} 25.
d7 {[%clk 0:03:50.6]} 25... Bxb2 {[%clk 0:03:41.5]} 26. d8=Q {[%clk 0:03:49.6]}
1-0

[Event "Live Chess"]
[Site "Chess.com"]
[Date "2024.06.02"]
[Round "-"]
[White "McFim"]
[Black "KeithArkell"]
[Result "1-0"]
[WhiteElo "1650"]
[BlackElo "2422"]
[TimeControl "300"]
[EndTime "21:07:12 PDT"]
[Termination "McFim won by resignation"]

1. e4 {[%clk 0:04:57.1]} 1... c6 {[%clk 0:04:59]} 2. d4 {[%clk 0:04:55.3]} 2...
d5 {[%clk 0:04:58.4]} 3. exd5 {[%clk 0:04:55]} 3... cxd5 {[%clk 0:04:57.9]} 4.
Bd3 {[%clk 0:04:54.6]} 4... Nf6 {[%clk 0:04:57.7]} 5. c3 {[%clk 0:04:54]} 5...
Nc6 {[%clk 0:04:57.5]} 6. Bf4 {[%clk 0:04:52.5]} 6... Bg4 {[%clk 0:04:56.9]} 7.
Nf3 {[%clk 0:04:51.4]} 7... e6 {[%clk 0:04:55.6]} 8. Nbd2 {[%clk 0:04:49.1]}
8... Bd6 {[%clk 0:04:55.2]} 9. Bxd6 {[%clk 0:04:48.5]} 9... Qxd6 {[%clk
0:04:55.1]} 10. O-O {[%clk 0:04:47.7]} 10... O-O {[%clk 0:04:53.7]} 11. Qe1
{[%clk 0:04:46.4]} 11... Bxf3 {[%clk 0:04:50.4]} 12. Nxf3 {[%clk 0:04:42.5]}
12... Qf4 {[%clk 0:04:46.8]} 13. Qd2 {[%clk 0:04:31.6]} 13... Qxd2 {[%clk
0:04:45.5]} 14. Nxd2 {[%clk 0:04:30.1]} 14... Rab8 {[%clk 0:04:45.2]} 15. a4
{[%clk 0:04:27.7]} 15... Rfc8 {[%clk 0:04:42.2]} 16. Rfe1 {[%clk 0:04:25.6]}
16... Ne8 {[%clk 0:04:41.1]} 17. g3 {[%clk 0:04:10.7]} 17... Nd6 {[%clk
0:04:40.2]} 18. Re2 {[%clk 0:03:59.1]} 18... g6 {[%clk 0:04:39.7]} 19. Kg2
{[%clk 0:03:55.7]} 19... Na5 {[%clk 0:04:38.8]} 20. h4 {[%clk 0:03:48.1]} 20...
Kg7 {[%clk 0:04:36.8]} 21. Rh1 {[%clk 0:03:42.4]} 21... Nac4 {[%clk 0:04:35.1]}
22. Bxc4 {[%clk 0:03:32.2]} 22... Nxc4 {[%clk 0:04:34.1]} 23. Nxc4 {[%clk
0:03:30.4]} 23... Rxc4 {[%clk 0:04:32.1]} 24. Ra1 {[%clk 0:03:28.8]} 24... b6
{[%clk 0:04:31.2]} 25. Ra3 {[%clk 0:03:18.2]} 25... h6 {[%clk 0:04:30.3]} 26. f4
{[%clk 0:03:11.4]} 26... h5 {[%clk 0:04:22.6]} 27. Kf3 {[%clk 0:03:09.8]} 27...
a6 {[%clk 0:04:21.9]} 28. Re3 {[%clk 0:03:06.7]} 28... Kf6 {[%clk 0:04:21]} 29.
b4 {[%clk 0:03:04.2]} 29... Rbc8 {[%clk 0:04:18.7]} 30. Ke2 {[%clk 0:03:01.4]}
30... a5 {[%clk 0:04:17.6]} 31. b5 {[%clk 0:02:58.4]} 31... Kf5 {[%clk
0:04:13.9]} 32. Kd2 {[%clk 0:02:56.7]} 32... R4c7 {[%clk 0:04:12.7]} 33. Kc2
{[%clk 0:02:39.6]} 33... Kg4 {[%clk 0:04:07.6]} 34. Kb3 {[%clk 0:02:37.4]} 34...
Re7 {[%clk 0:04:05.1]} 35. Ra1 {[%clk 0:02:35.6]} 35... Rce8 {[%clk 0:04:03.3]}
36. Rae1 {[%clk 0:02:33.9]} 36... f6 {[%clk 0:04:02.2]} 37. R1e2 {[%clk
0:02:25.1]} 37... Kf5 {[%clk 0:03:50.6]} 38. Kc2 {[%clk 0:02:20.7]} 38... Rg8
{[%clk 0:03:48.8]} 39. Kd3 {[%clk 0:02:13.3]} 39... Rc8 {[%clk 0:03:42.6]} 40.
Kc2 {[%clk 0:02:12]} 40... Rc4 {[%clk 0:03:39.9]} 41. Kb3 {[%clk 0:02:10.7]}
41... Re8 {[%clk 0:03:39]} 42. Ra2 {[%clk 0:02:07.1]} 42... Kg4 {[%clk
0:03:28.4]} 43. Rae2 {[%clk 0:02:04.8]} 43... Kf5 {[%clk 0:03:26.5]} 44. Rf2
{[%clk 0:02:03.6]} 44... Rc7 {[%clk 0:03:18.2]} 45. Rfe2 {[%clk 0:02:01.3]}
45... Rg7 {[%clk 0:03:14.7]} 46. Rf2 {[%clk 0:01:59.1]} 46... Kg4 {[%clk
0:03:09.9]} 47. Rfe2 {[%clk 0:01:57.5]} 47... Rge7 {[%clk 0:03:09.3]} 48. Rf2
{[%clk 0:01:55.9]} 48... g5 {[%clk 0:03:04.2]} 49. fxg5 {[%clk 0:01:50]} 49...
fxg5 {[%clk 0:03:03.4]} 50. hxg5 {[%clk 0:01:48.5]} 50... Kxg5 {[%clk
0:03:00.2]} 51. Rf4 {[%clk 0:01:20]} 51... e5 {[%clk 0:02:59]} 52. dxe5 {[%clk
0:01:18.1]} 52... Rxe5 {[%clk 0:02:58.3]} 53. Rd3 {[%clk 0:01:10.8]} 53... R8e6
{[%clk 0:02:51.8]} 54. Rfd4 {[%clk 0:01:09.1]} 54... Rd6 {[%clk 0:02:49.1]} 55.
Rf4 {[%clk 0:00:46.5]} 55... Rf5 {[%clk 0:02:46.3]} 56. Rfd4 {[%clk 0:00:44.4]}
56... Kf6 {[%clk 0:02:45.4]} 57. c4 {[%clk 0:00:39.5]} 57... dxc4+ {[%clk
0:02:44.1]} 58. Kxc4 {[%clk 0:00:37.7]} 58... Rxd4+ {[%clk 0:02:42.9]} 59. Rxd4
{[%clk 0:00:34.4]} 59... Kg5 {[%clk 0:02:41.1]} 60. Rd6 {[%clk 0:00:30.5]} 60...
Rf6 {[%clk 0:02:40.2]} 61. Rxf6 {[%clk 0:00:27.4]} 61... Kxf6 {[%clk 0:02:39.3]}
62. Kd5 {[%clk 0:00:26.6]} 62... Kg5 {[%clk 0:02:38.7]} 63. Kc6 {[%clk
0:00:25.6]} 63... Kg4 {[%clk 0:02:38.3]} 64. Kxb6 {[%clk 0:00:24.6]} 64... Kxg3
{[%clk 0:02:37.9]} 65. Kxa5 {[%clk 0:00:23.5]} 65... h4 {[%clk 0:02:37.5]} 66.
b6 {[%clk 0:00:22.5]} 66... h3 {[%clk 0:02:37.1]} 67. b7 {[%clk 0:00:21.5]}
67... h2 {[%clk 0:02:36.5]} 68. b8=Q+ {[%clk 0:00:19.6]} 1-0

[Event "Live Chess"]
[Site "Chess.com"]
[Date "2024.06.02"]
[Round "-"]
[White "Mangoalo"]
[Black "BostonStrangler"]
[Result "0-1"]
[WhiteElo "1066"]
[BlackElo "2118"]
[TimeControl "300"]
[EndTime "21:07:59 PDT"]
[Termination "BostonStrangler won by resignation"]

1. e4 {[%clk 0:04:59.1]} 1... c5 {[%clk 0:04:58.1]} 2. Nf3 {[%clk 0:04:58.3]}
2... g6 {[%clk 0:04:56.6]} 3. d4 {[%clk 0:04:57.6]} 3... cxd4 {[%clk 0:04:55.8]}
4. Nxd4 {[%clk 0:04:57.5]} 4... Nc6 {[%clk 0:04:54.1]} 5. Nc3 {[%clk 0:04:57.2]}
5... Bg7 {[%clk 0:04:52.8]} 6. Be3 {[%clk 0:04:49.3]} 6... Nf6 {[%clk 0:04:52]}
7. Bb5 {[%clk 0:04:44.3]} 7... O-O {[%clk 0:04:50.5]} 8. Qd3 {[%clk 0:04:42.4]}
8... Ne5 {[%clk 0:04:46.3]} 9. Qd2 {[%clk 0:04:40.4]} 9... a6 {[%clk 0:04:44.4]}
10. Be2 {[%clk 0:04:37.5]} 10... d5 {[%clk 0:04:41.9]} 11. f4 {[%clk 0:04:35.7]}
11... Nc4 {[%clk 0:04:30.2]} 12. Bxc4 {[%clk 0:04:32.6]} 12... dxc4 {[%clk
0:04:30.1]} 13. e5 {[%clk 0:04:31.5]} 13... Nd5 {[%clk 0:04:28]} 14. Nxd5 {[%clk
0:04:29.6]} 14... Qxd5 {[%clk 0:04:26.4]} 15. O-O-O {[%clk 0:04:28.1]} 15... b5
{[%clk 0:03:51.9]} 16. Qc3 {[%clk 0:04:24.5]} 16... Bg4 {[%clk 0:03:39.7]} 17.
Nf3 {[%clk 0:04:21]} 17... Qc6 {[%clk 0:03:30.6]} 18. Nd4 {[%clk 0:04:11.5]}
18... Qc7 {[%clk 0:03:21.7]} 19. Rd2 {[%clk 0:04:00.6]} 19... b4 {[%clk
0:03:15]} 20. Qxb4 {[%clk 0:03:56.1]} 20... Rfb8 {[%clk 0:03:09.6]} 21. Qa3
{[%clk 0:03:54.6]} 21... e6 {[%clk 0:03:06]} 22. h3 {[%clk 0:03:42.2]} 22... Bf8
{[%clk 0:02:54]} 23. Qc3 {[%clk 0:03:21.3]} 23... Bb4 {[%clk 0:02:49.4]} 0-1

[Event "Live Chess"]
[Site "Chess.com"]
[Date "2024.06.02"]
[Round "-"]
[White "Duke_of_Bebington"]
[Black "juniortay"]
[Result "0-1"]
[WhiteElo "1657"]
[BlackElo "2447"]
[TimeControl "300"]
[EndTime "21:08:53 PDT"]
[Termination "juniortay won by resignation"]

1. e4 {[%clk 0:04:58.5]} 1... e5 {[%clk 0:04:59.3]} 2. Nf3 {[%clk 0:04:57.9]}
2... Nf6 {[%clk 0:04:58.6]} 3. d4 {[%clk 0:04:56.2]} 3... Nxe4 {[%clk
0:04:56.9]} 4. dxe5 {[%clk 0:04:52.3]} 4... Bc5 {[%clk 0:04:55.1]} 5. Be3 {[%clk
0:04:37.6]} 5... Bxe3 {[%clk 0:04:53.7]} 6. fxe3 {[%clk 0:04:37.5]} 6... d5
{[%clk 0:04:53.4]} 7. exd6 {[%clk 0:04:35.4]} 7... O-O {[%clk 0:04:51.6]} 8.
dxc7 {[%clk 0:04:24.7]} 8... Qxc7 {[%clk 0:04:49.6]} 9. Bd3 {[%clk 0:04:20.4]}
9... Nc5 {[%clk 0:04:42.3]} 10. O-O {[%clk 0:04:17.5]} 10... Bg4 {[%clk
0:04:39.7]} 11. Bxh7+ {[%clk 0:04:12.6]} 11... Kh8 {[%clk 0:04:38.3]} 12. Bd3
{[%clk 0:04:05.8]} 12... Nc6 {[%clk 0:04:36.2]} 13. Nc3 {[%clk 0:04:04.3]} 13...
Rad8 {[%clk 0:04:34.3]} 14. Qe2 {[%clk 0:03:57.5]} 14... Ne5 {[%clk 0:04:28.1]}
15. Rad1 {[%clk 0:03:54.3]} 15... Kg8 {[%clk 0:04:23.9]} 16. Nb5 {[%clk
0:03:43.6]} 16... Qe7 {[%clk 0:04:18.1]} 17. Nbd4 {[%clk 0:03:40.5]} 17... Rfe8
{[%clk 0:04:07.4]} 18. h3 {[%clk 0:03:31.1]} 18... Bh5 {[%clk 0:04:00.8]} 19.
Nf5 {[%clk 0:03:20.4]} 19... Nxf3+ {[%clk 0:03:44.4]} 20. Kh1 {[%clk 0:03:07.6]}
20... Qe5 {[%clk 0:03:40]} 21. gxf3 {[%clk 0:02:58.8]} 21... Nxd3 {[%clk
0:03:37.8]} 22. cxd3 {[%clk 0:02:44.9]} 22... Qxf5 {[%clk 0:03:36.5]} 23. Rg1
{[%clk 0:02:39.6]} 23... Bxf3+ {[%clk 0:03:33.8]} 24. Kh2 {[%clk 0:02:37.9]}
24... Bxe2 {[%clk 0:03:32.9]} 0-1